bitfinex-derivatives/quotes_BTCF0:USTF0_20250803
["timestamp","ask_amount","ask_price","bid_price","bid_amount"]
[1754253360433,0.08115306,114320.0,114310.0,0.8270334]
[1754253360628,0.08115306,114320.0,114310.0,1.43476116]
[1754253363534,0.001,114320.0,114310.0,1.43476116]
[1754253363735,0.1759583,114320.0,114310.0,1.43476116]
[1754253365641,1.16060606,114320.0,114310.0,1.43476156]
[1754253365840,1.18348606,114320.0,114310.0,1.43476156]
[1754253366039,0.82268606,114320.0,114310.0,1.43476156]
[1754253366439,1.18348606,114320.0,114310.0,1.43476156]
[1754253366639,0.82268606,114320.0,114310.0,1.43476156]
[1754253366942,1.18348606,114320.0,114310.0,1.43476156]
[1754253367841,1.18348606,114320.0,114310.0,1.16756156]
[1754253370044,1.18348606,114320.0,114310.0,0.99259776]
[1754253370649,1.18348606,114320.0,114310.0,1.16756156]
[1754253373643,1.18348606,114320.0,114310.0,1.43476156]
[1754253375342,0.5757583,114320.0,114310.0,1.43476156]
[1754253376744,0.2149583,114320.0,114310.0,1.43476156]
[1754253376945,0.5757583,114320.0,114310.0,1.43476156]
[1754253377348,0.5757583,114320.0,114310.0,0.8270338]
[1754253377547,0.5757583,114320.0,114310.0,1.43476156]
[1754253389048,0.2149583,114320.0,114310.0,1.43476156]
[1754253394245,0.1920783,114320.0,114310.0,1.43476156]
[1754253397357,0.1759583,114320.0,114310.0,1.43476156]
[1754253413074,0.1759583,114320.0,114310.0,0.8270338]
[1754253413475,0.1759583,114320.0,114310.0,1.43476156]
[1754253413775,0.1759583,114320.0,114310.0,0.8270338]
[1754253413975,0.1910483,114320.0,114310.0,0.8270338]
[1754253414177,0.1910483,114320.0,114310.0,1.43476156]
[1754253414475,0.2138083,114320.0,114310.0,1.43476156]
[1754253418184,0.2138083,114320.0,114310.0,1.16836156]
[1754253418185,0.1910483,114320.0,114310.0,1.16836156]
[1754253418381,1.18233606,114320.0,114310.0,1.43440156]
[1754253422389,0.82153606,114320.0,114310.0,1.43440156]
[1754253422685,1.18233606,114320.0,114310.0,1.43440156]
[1754253423079,0.5746083,114320.0,114310.0,1.43440156]
[1754253423385,1.18233606,114320.0,114310.0,1.43440156]
[1754253423986,1.18233606,114320.0,114310.0,1.16720156]
[1754253426887,1.18233606,114320.0,114310.0,0.99223776]
[1754253427481,1.18233606,114320.0,114310.0,1.16720166]
[1754253428386,0.82153606,114320.0,114310.0,1.16720166]
[1754253429393,1.18233606,114320.0,114310.0,1.16720166]
[1754253435395,1.18233606,114320.0,114310.0,1.16720156]
[1754253440696,1.18233606,114320.0,114310.0,0.2977]
[1754253440903,1.18233606,114320.0,114310.0,0.32239]
[1754253441101,1.18233606,114320.0,114310.0,0.34343]
[1754253441500,1.18233606,114320.0,114310.0,0.36649]
[1754253443499,1.18233606,114320.0,114310.0,0.10053]
[1754253443700,0.1904192,114300.0,114290.0,1.26569605]
[1754253443896,1.79047472,114300.0,114290.0,1.53165605]
[1754253444102,0.5750192,114300.0,114290.0,1.55471605]
[1754253444302,1.18274696,114300.0,114290.0,1.55471605]
[1754253445009,0.5750192,114300.0,114290.0,1.55471605]
[1754253445209,1.18274696,114300.0,114290.0,2.16244381]
[1754253445507,1.18274696,114300.0,114290.0,2.33743811]
[1754253446105,0.5750192,114300.0,114290.0,2.33743811]
[1754253447613,1.18274696,114300.0,114290.0,2.33743811]
[1754253448912,1.18274696,114300.0,114290.0,2.33943811]
[1754253448913,0.5750192,114300.0,114290.0,2.33943811]
[1754253449114,1.18274696,114300.0,114290.0,2.33943811]
[1754253449912,0.5512192,114300.0,114290.0,2.33943811]
[1754253450110,0.5357792,114300.0,114290.0,2.33943811]
[1754253454517,0.5750192,114300.0,114290.0,2.33943811]
[1754253455315,0.5512192,114300.0,114290.0,2.33943811]
[1754253456420,0.5750192,114300.0,114290.0,2.33943811]
[1754253457112,0.5750192,114300.0,114290.0,2.34243811]
[1754253458821,1.18274696,114300.0,114290.0,2.34243811]
[1754253460624,0.5750192,114300.0,114290.0,2.34243811]
[1754253460830,1.18274696,114300.0,114290.0,2.34243811]
[1754253462831,0.82194696,114300.0,114290.0,2.34243811]
[1754253463132,1.18274696,114300.0,114290.0,2.34243811]
[1754253465537,1.18274696,114300.0,114290.0,1.73471035]
[1754253465734,1.18274696,114300.0,114290.0,2.34243811]
[1754253466038,0.82194696,114300.0,114290.0,2.34243811]
[1754253466238,0.82194696,114300.0,114290.0,1.73471035]
[1754253466441,0.82194696,114300.0,114290.0,2.34243811]
[1754253467839,1.18274696,114300.0,114290.0,1.55971605]
[1754253468140,1.18274696,114300.0,114290.0,1.55963605]
[1754253468342,1.18274696,114300.0,114290.0,1.53657605]
[1754253468545,1.18274696,114300.0,114290.0,1.56002605]
[1754253468840,1.79047472,114300.0,114290.0,1.56002605]
[1754253470044,1.79047472,114300.0,114290.0,0.39842605]
[1754253471539,1.79047472,114300.0,114290.0,0.41617351]
[1754253472838,0.5750192,114300.0,114290.0,1.19889567]
[1754253473142,1.18274696,114300.0,114290.0,1.19889567]
[1754253473342,1.18230696,114300.0,114290.0,1.19889567]
[1754253473547,0.5357792,114300.0,114290.0,1.19889567]
[1754253473739,0.1749792,114300.0,114290.0,1.19889567]
[1754253474648,0.1749792,114300.0,114290.0,1.13141984]
[1754253477245,0.1749792,114300.0,114290.0,1.39861984]
[1754253477844,0.1749792,114300.0,114290.0,1.75941984]
[1754253480645,0.2624605,114310.0,114300.0,0.2932192]
[1754253480839,0.2624605,114310.0,114300.0,0.83347113]
[1754253481046,0.2624605,114310.0,114300.0,1.19427113]
[1754253482152,0.3776245,114310.0,114300.0,1.19427113]
[1754253482450,0.3776245,114310.0,114300.0,1.19527113]
[1754253482645,0.2901385,114310.0,114300.0,1.19527113]
[1754253482850,0.2901279,114310.0,114300.0,1.46247113]
[1754253483747,0.2901279,114310.0,114300.0,1.96247113]
[1754253483947,0.2901279,114310.0,114300.0,1.96347113]
[1754253492352,0.2901279,114310.0,114300.0,1.0624192]
[1754253492553,0.3307079,114310.0,114300.0,1.60267113]
[1754253495252,0.3307079,114310.0,114300.0,1.0624192]
[1754253495455,0.3307079,114310.0,114300.0,1.60267113]
[1754253496754,0.3059779,114310.0,114300.0,1.60267113]
[1754253498554,0.3307079,114310.0,114300.0,1.60267113]
[1754253501858,0.3059779,114310.0,114300.0,1.60267113]
[1754253502460,0.2901279,114310.0,114300.0,1.60267113]
[1754253502662,0.2901279,114310.0,114300.0,2.2778867]
[1754253505265,0.2901279,114310.0,114300.0,2.6386867]
[1754253507068,0.2901278,114310.0,114300.0,2.6386867]
[1754253509263,0.115164,114310.0,114300.0,2.6386867]
[1754253510072,0.080164,114310.0,114300.0,2.6386867]
[1754253510265,0.045164,114310.0,114300.0,2.6386867]
[1754253511263,0.25831965,114330.0,114320.0,0.2598586]
[1754253511469,0.1735152,114330.0,114320.0,2.42157518]
[1754253511668,0.2345106,114340.0,114330.0,0.2944933]
[1754253511866,0.2345106,114340.0,114330.0,1.5099608]
[1754253512674,0.2345106,114340.0,114330.0,1.8707608]
[1754253513274,0.2365106,114340.0,114330.0,1.8707608]
[1754253513571,0.2395106,114340.0,114330.0,1.8707608]
[1754253514376,0.3546746,114340.0,114330.0,1.8707608]
[1754253514667,0.3546746,114340.0,114330.0,1.19521145]
[1754253515671,0.2950928,114340.0,114330.0,1.19521145]
[1754253516870,0.2950928,114340.0,114330.0,1.69521145]
[1754253518970,0.2950928,114340.0,114330.0,1.76651552]
[1754253520072,0.120164,114340.0,114330.0,1.76651552]
[1754253520270,0.2950816,114340.0,114330.0,1.76651552]
[1754253520671,0.120164,114340.0,114330.0,1.76651552]
[1754253520968,0.2950816,114340.0,114330.0,1.76651552]
[1754253521672,0.2950816,114340.0,114330.0,2.03371552]
[1754253522869,0.120164,114340.0,114330.0,2.03371552]
[1754253528478,0.3115016,114340.0,114330.0,2.03371552]
[1754253528679,0.3678916,114340.0,114330.0,2.03371552]
[1754253529074,0.3430516,114340.0,114330.0,2.03371552]
[1754253529281,0.3115016,114340.0,114330.0,2.03371552]
[1754253530477,0.3115016,114340.0,114330.0,2.29927552]
[1754253530783,0.3115016,114340.0,114330.0,2.03371552]
[1754253530979,0.3115016,114340.0,114330.0,2.29927552]
[1754253531480,0.2950816,114340.0,114330.0,2.29927552]
[1754253531677,0.3330616,114340.0,114330.0,2.03371552]
[1754253531884,0.3330616,114340.0,114330.0,2.29927552]
[1754253532083,0.3115016,114340.0,114330.0,2.29927552]
[1754253532985,0.3115016,114340.0,114330.0,1.75935737]
[1754253533177,0.3115016,114340.0,114330.0,2.29927552]
[1754253534084,0.3894516,114340.0,114330.0,2.25160552]
[1754253538588,0.3894516,114340.0,114330.0,1.98548552]
[1754253538785,0.3894516,114340.0,114330.0,2.25152552]
[1754253539780,0.3894516,114340.0,114330.0,1.71160737]
[1754253539981,0.3894516,114340.0,114330.0,2.25152552]
[1754253550697,0.3894516,114340.0,114330.0,2.92637729]
[1754253555998,0.3894516,114340.0,114330.0,1.71160737]
[1754253556193,0.3894516,114340.0,114330.0,2.92637729]
[1754253557201,0.3894516,114340.0,114330.0,3.03626917]
[1754253559201,0.3646116,114340.0,114330.0,3.03626917]
[1754253559402,0.3430516,114340.0,114330.0,3.03626917]
[1754253559601,0.3115016,114340.0,114330.0,3.03626917]
[1754253559903,0.3115016,114340.0,114330.0,1.82149925]
[1754253560090,0.3115016,114340.0,114330.0,3.03626917]
[1754253562098,0.3115016,114340.0,114330.0,2.92637729]
[1754253564908,0.3115016,114340.0,114330.0,1.71160737]
[1754253565205,0.3115016,114340.0,114330.0,2.92637729]
[1754253571914,0.3115016,114340.0,114330.0,3.03626917]
[1754253572615,0.3115016,114340.0,114330.0,2.92637729]
[1754253575426,0.3115016,114340.0,114330.0,3.03626917]
[1754253579227,0.2950816,114340.0,114330.0,3.03626917]
[1754253588637,0.2950816,114340.0,114330.0,3.03578917]
[1754253589736,0.3109016,114340.0,114330.0,1.82101925]
[1754253589938,0.3109016,114340.0,114330.0,3.03578917]
[1754253590138,0.3677016,114340.0,114330.0,3.03578917]
[1754253590333,0.3441116,114340.0,114330.0,3.03578917]
[1754253590635,0.3109016,114340.0,114330.0,3.03578917]
[1754253591639,0.3109016,114340.0,114330.0,2.77022917]
[1754253591936,0.3109016,114340.0,114330.0,3.03578917]
[1754253593141,0.2950816,114340.0,114330.0,3.03578917]
[1754253595044,0.2950816,114340.0,114330.0,2.67498917]
[1754253595242,0.2950816,114340.0,114330.0,3.03578917]
[1754253603544,0.120164,114340.0,114330.0,3.03578917]
[1754253603846,0.115164,114340.0,114330.0,3.03578917]
[1754253604048,0.02611,114350.0,114340.0,0.2242878]
[1754253604247,0.02611,114350.0,114340.0,1.53346276]
[1754253604449,0.02611,114350.0,114340.0,2.14084772]
[1754253604751,0.1748986,114360.0,114350.0,0.2113425]
[1754253604948,0.2421941,114370.0,114360.0,0.2632372]
[1754253605150,0.1984743,114370.0,114360.0,1.85626807]
[1754253606051,0.1748843,114370.0,114360.0,1.85626807]
[1754253606242,0.6408969,114390.0,114380.0,0.2610366]
[1754253606554,0.02359,114390.0,114380.0,1.15394173]
[1754253606752,0.262255,114400.0,114390.0,0.2610214]
[1754253606948,0.285845,114400.0,114390.0,0.87057636]
[1754253607145,0.2421354,114400.0,114390.0,1.83876132]
[1754253607953,0.2451354,114400.0,114390.0,1.83876132]
[1754253608146,0.2451354,114400.0,114390.0,1.90930557]
[1754253608453,0.2451354,114400.0,114390.0,1.91806146]
[1754253608647,0.2451354,114400.0,114390.0,1.24263624]
[1754253609946,0.2215454,114400.0,114390.0,1.24263624]
[1754253610152,0.2622297,114410.0,114390.0,1.19891854]
[1754253610352,0.2185248,114410.0,114400.0,1.4266708]
[1754253610551,0.6355448,114410.0,114400.0,0.08618]
[1754253610756,0.6355448,114410.0,114400.0,0.32217]
[1754253610757,0.6984348,114410.0,114400.0,0.32217]
[1754253610950,0.6984348,114410.0,114400.0,0.34538]
[1754253611158,0.2919161,114400.0,114390.0,0.60251014]
[1754253611358,0.6527161,114400.0,114390.0,0.92440014]
[1754253611759,0.6537161,114400.0,114390.0,0.92440014]
[1754253612153,1.1930608,114400.0,114390.0,0.92440014]
[1754253612349,1.1930608,114400.0,114390.0,0.42440014]
[1754253612552,0.6537161,114400.0,114390.0,0.59924154]
[1754253612754,0.6537161,114400.0,114390.0,0.16216014]
[1754253613059,0.6527161,114400.0,114390.0,0.60284154]
[1754253613359,0.6537161,114400.0,114390.0,0.60284154]
[1754253613761,0.6527161,114400.0,114390.0,0.42800014]
[1754253613953,1.1930608,114400.0,114390.0,0.42472014]
[1754253614866,1.1940608,114400.0,114390.0,0.42472014]
[1754253615163,1.3092248,114400.0,114390.0,0.42472014]
[1754253616661,0.7698801,114400.0,114390.0,0.59956134]
[1754253617564,0.7698801,114400.0,114390.0,0.60304134]
[1754253621166,0.7698801,114400.0,114390.0,0.42820014]
[1754253622963,0.7698801,114400.0,114390.0,0.42472014]
[1754253625265,0.7698801,114400.0,114390.0,0.59956114]
[1754253626763,0.7698801,114400.0,114390.0,0.60304114]
[1754253632670,1.37683801,114400.0,114390.0,1.20999905]
[1754253633572,1.01603801,114400.0,114390.0,1.20999905]
[1754253635669,1.37683801,114400.0,114390.0,0.07930014]
[1754253635972,0.2919312,114390.0,114380.0,0.02742017]
[1754253636175,1.25968911,114390.0,114380.0,0.29302017]
[1754253636470,1.25968911,114390.0,114380.0,0.30196546]
[1754253636678,1.1923751,114390.0,114380.0,0.30196546]
[1754253637670,1.1923751,114390.0,114380.0,0.33375546]
[1754253638374,0.6527312,114390.0,114380.0,0.33375546]
[1754253639574,0.6527312,114390.0,114380.0,0.34850546]
[1754253640276,0.7678952,114390.0,114380.0,0.34850546]
[1754253641578,0.7678952,114390.0,114380.0,0.54555196]
[1754253641782,0.7678952,114390.0,114380.0,0.37069546]
[1754253643174,0.7678952,114390.0,114380.0,0.54555196]
[1754253643479,0.7678952,114390.0,114380.0,0.54903196]
[1754253650185,0.7678952,114390.0,114380.0,0.37417546]
[1754253651382,0.7678952,114390.0,114380.0,0.28343186]
[1754253651681,0.7678952,114390.0,114380.0,0.54915186]
[1754253656784,1.37491356,114390.0,114380.0,1.15617022]
[1754253658485,0.7678952,114390.0,114380.0,1.15617022]
[1754253658680,1.37491356,114390.0,114380.0,1.15617022]
[1754253660782,1.37491356,114390.0,114380.0,0.98131382]
[1754253660985,1.37491356,114390.0,114380.0,1.15617022]
[1754253661580,1.37491356,114390.0,114380.0,0.98131382]
[1754253663785,1.37491356,114390.0,114380.0,1.15617012]
[1754253664284,1.35991356,114390.0,114380.0,1.15617012]
[1754253664488,0.3148752,114390.0,114380.0,2.12615848]
[1754253664678,0.2900052,114390.0,114380.0,2.12615848]
[1754253664880,0.2900052,114390.0,114380.0,2.03528648]
[1754253664881,0.115164,114390.0,114380.0,2.03528648]
[1754253665081,0.112994,114390.0,114380.0,2.30080648]
[1754253665988,0.112994,114390.0,114380.0,2.80080648]
[1754253666188,0.2878353,114390.0,114380.0,2.80080648]
[1754253666389,0.2878353,114390.0,114380.0,2.91080122]
[1754253666789,0.112994,114390.0,114380.0,2.23609171]
[1754253668094,0.2878355,114390.0,114380.0,2.23609171]
[1754253668391,0.3127055,114390.0,114380.0,2.23609171]
[1754253669692,0.3127055,114390.0,114380.0,2.06124371]
[1754253670394,0.112994,114390.0,114380.0,2.06124371]
[1754253672492,0.112994,114390.0,114380.0,2.32844371]
[1754253673384,0.2577897,114410.0,114400.0,0.1748261]
[1754253673586,0.15678626,114440.0,114430.0,0.1747722]
[1754253673894,0.07520002,114440.0,114430.0,2.20434941]
[1754253674090,0.28273502,114440.0,114430.0,2.56514941]
[1754253674796,0.28373502,114440.0,114430.0,2.56514941]
[1754253675191,0.26981502,114440.0,114430.0,2.56514941]
[1754253675398,0.23704502,114440.0,114430.0,2.56514941]
[1754253675793,0.02395002,114440.0,114430.0,2.56514941]
[1754253676096,0.18908502,114440.0,114430.0,2.56514941]
[1754253676492,0.22285502,114440.0,114430.0,2.56514941]
[1754253676796,0.39989902,114440.0,114430.0,2.63452629]
[1754253680896,0.39889902,114440.0,114430.0,2.63452629]
[1754253681799,0.39889902,114440.0,114430.0,1.55946688]
[1754253681994,0.39889902,114440.0,114430.0,2.27357429]
[1754253682293,0.75969902,114440.0,114430.0,1.27841688]
[1754253682507,0.75969902,114440.0,114430.0,1.54389688]
[1754253682693,0.76069902,114440.0,114430.0,2.08322409]
[1754253682894,0.76069902,114440.0,114430.0,2.25800429]
[1754253683101,0.74677902,114440.0,114430.0,2.26950429]
[1754253683296,0.35320902,114440.0,114430.0,2.63030429]
[1754253683496,0.31487902,114440.0,114430.0,2.63030429]
[1754253684299,0.14011402,114440.0,114430.0,2.63030429]
[1754253684501,0.117164,114440.0,114430.0,2.63030429]
[1754253685304,0.139984,114440.0,114430.0,2.63030429]
[1754253685506,0.3147489,114440.0,114430.0,2.63030429]
[1754253686007,0.2899289,114440.0,114430.0,2.63030429]
[1754253686397,0.115164,114440.0,114430.0,2.63030429]
[1754253687803,0.2899289,114440.0,114430.0,2.63030429]
[1754253688307,0.2899289,114440.0,114430.0,3.13030429]
[1754253688511,0.115164,114440.0,114430.0,3.13030429]
[1754253689105,0.01875997,114460.0,114450.0,0.2786892]
[1754253689308,0.1747344,114460.0,114450.0,0.33663]
[1754253689509,0.1747498,114450.0,114440.0,0.77106171]
[1754253689811,0.222725,114440.0,114430.0,0.36337718]
[1754253690019,0.222725,114440.0,114430.0,0.99344409]
[1754253690305,0.222725,114440.0,114430.0,1.16822439]
[1754253690514,0.174765,114440.0,114430.0,1.52902439]
[1754253691215,0.289929,114440.0,114430.0,1.52902439]
[1754253697316,0.289929,114440.0,114430.0,0.98969718]
[1754253697526,0.289929,114440.0,114430.0,1.52902439]
[1754253706422,0.409569,114440.0,114430.0,1.52902439]
[1754253706720,0.370709,114440.0,114430.0,1.52902439]
[1754253711026,0.337229,114440.0,114430.0,1.52902439]
[1754253711222,0.299549,114440.0,114430.0,0.98969718]
[1754253711423,0.299549,114440.0,114430.0,1.52902439]
[1754253711627,0.333029,114440.0,114430.0,1.52902439]
[1754253712021,0.333029,114440.0,114430.0,1.53102439]
[1754253716027,0.354059,114440.0,114430.0,1.53102439]
[1754253716233,0.409569,114440.0,114430.0,1.53102439]
[1754253716630,0.409569,114440.0,114430.0,0.72992409]
[1754253716835,0.409569,114440.0,114430.0,1.53150399]
[1754253717734,0.409569,114440.0,114430.0,1.17070399]
[1754253719034,0.409569,114440.0,114430.0,2.37918399]
[1754253719932,0.409569,114440.0,114430.0,2.73998399]
[1754253720135,0.409569,114440.0,114430.0,2.73898399]
[1754253720330,0.409569,114440.0,114430.0,2.73998399]
[1754253720633,0.409569,114440.0,114430.0,2.73898399]
[1754253721335,0.409569,114440.0,114430.0,2.73798399]
[1754253721534,0.115164,114440.0,114430.0,2.73798399]
[1754253721923,0.115164,114440.0,114430.0,3.2773112]
[1754253722436,0.10322896,114440.0,114430.0,3.2773112]
[1754253722636,0.10322896,114440.0,114430.0,2.73798399]
[1754253722836,0.10322896,114440.0,114430.0,3.00518399]
[1754253723135,0.10322896,114440.0,114430.0,3.50518399]
[1754253723633,0.10322896,114440.0,114430.0,3.50618399]
[1754253724136,0.10322896,114440.0,114430.0,3.50718399]
[1754253724327,0.10322896,114440.0,114430.0,3.50618399]
[1754253724527,0.19065638,114470.0,114460.0,0.1905441]
[1754253724731,0.29386245,114470.0,114460.0,1.38913131]
[1754253725728,0.29686245,114470.0,114460.0,1.38913131]
[1754253726932,0.29886245,114470.0,114460.0,1.38913131]
[1754253727734,0.41402645,114470.0,114460.0,1.38913131]
[1754253731236,0.41402645,114470.0,114460.0,1.39795007]
[1754253739537,0.2948937,114470.0,114460.0,0.36961876]
[1754253739737,1.31458091,114470.0,114460.0,0.27449876]
[1754253739935,0.7752537,114470.0,114460.0,0.27449876]
[1754253740436,0.7752537,114470.0,114460.0,0.00881876]
[1754253740645,0.4144537,114470.0,114460.0,0.26564]
[1754253740843,0.7752537,114470.0,114460.0,0.26564]
[1754253741833,0.7752537,114470.0,114460.0,0.4403743]
[1754253742645,0.7752537,114470.0,114460.0,0.4564643]
[1754253744033,0.7752537,114470.0,114460.0,0.46520518]
[1754253745144,0.7752537,114470.0,114460.0,0.46512518]
[1754253752649,0.7752537,114470.0,114460.0,0.47479518]
[1754253752849,0.7752537,114470.0,114460.0,0.48441518]
[1754253753451,0.7752537,114470.0,114460.0,0.30968088]
[1754253753648,1.31458091,114470.0,114460.0,0.27414088]
[1754253754140,0.7752537,114470.0,114460.0,0.27414088]
[1754253758850,1.31458091,114470.0,114460.0,0.00874088]
[1754253759051,0.1747341,114460.0,114450.0,0.47419532]
[1754253759355,0.6550941,114460.0,114450.0,0.49348532]
[1754253759752,0.6550941,114460.0,114450.0,0.22808532]
[1754253760054,0.6550941,114460.0,114450.0,0.49348532]
[1754253760355,0.7722581,114460.0,114450.0,0.05333632]
[1754253760556,0.7722581,114460.0,114450.0,0.50211125]
[1754253761455,0.7722581,114460.0,114450.0,0.32736185]
[1754253762154,0.7722581,114460.0,114450.0,0.50211145]
[1754253762458,0.7722581,114460.0,114450.0,0.32736185]
[1754253763157,0.7722581,114460.0,114450.0,0.30807185]
[1754253763359,0.4114581,114460.0,114450.0,0.21742145]
[1754253763558,0.4114581,114460.0,114450.0,0.50199145]
[1754253763759,0.7722581,114460.0,114450.0,0.50199145]
[1754253764757,0.7722581,114460.0,114450.0,0.32724185]
[1754253765360,0.7722581,114460.0,114450.0,0.50199135]
[1754253767463,0.3966081,114460.0,114450.0,1.42544856]
[1754253768060,0.4112881,114460.0,114450.0,1.42544856]
[1754253768359,0.4102881,114460.0,114450.0,1.42544856]
[1754253768658,0.4092881,114460.0,114450.0,1.42544856]
[1754253768961,0.4092881,114460.0,114450.0,1.06464856]
[1754253774262,0.4092881,114460.0,114450.0,0.08517185]
[1754253774557,1.30941531,114460.0,114450.0,0.31762185]
[1754253774962,0.7700881,114460.0,114450.0,0.31762185]
[1754253775356,1.30941531,114460.0,114450.0,0.02658185]
[1754253775553,1.30941531,114460.0,114450.0,0.29198185]
[1754253778165,1.30941531,114460.0,114450.0,0.02658185]
[1754253780571,0.296885,114440.0,114430.0,0.37032272]
[1754253780762,0.83621221,114440.0,114430.0,0.35095688]
[1754253781158,1.19701221,114440.0,114430.0,0.35095688]
[1754253781757,1.19701221,114440.0,114430.0,0.33477688]
[1754253781969,0.657685,114440.0,114430.0,0.33577688]
[1754253782269,1.19701221,114440.0,114430.0,0.33677688]
[1754253783269,1.19701221,114440.0,114430.0,0.34548719]
[1754253783870,1.19701221,114440.0,114430.0,0.33677688]
[1754253784371,0.657685,114440.0,114430.0,0.33677688]
[1754253784870,1.19701221,114440.0,114430.0,0.33677688]
[1754253785271,1.31217621,114440.0,114430.0,0.34571235]
[1754253786376,0.772849,114440.0,114430.0,0.34571235]
[1754253786568,0.772849,114440.0,114430.0,0.34471235]
[1754253786970,0.772849,114440.0,114430.0,0.34371235]
[1754253787474,0.772849,114440.0,114430.0,0.51849245]
[1754253788174,0.772849,114440.0,114430.0,0.34371235]
[1754253792882,0.772849,114440.0,114430.0,0.35932235]
[1754253793074,0.772849,114440.0,114430.0,0.36894235]
[1754253793783,1.31217621,114440.0,114430.0,0.36894235]
[1754253795676,1.31217621,114440.0,114430.0,0.35932235]
[1754253797981,1.31217621,114440.0,114430.0,0.06937688]
[1754253798184,0.17478,114430.0,114420.0,1.47392]
[1754253798386,1.19442721,114430.0,114420.0,1.6583353]
[1754253798989,0.6551,114430.0,114420.0,1.6583353]
[1754253799191,0.6551,114430.0,114420.0,1.66730777]
[1754253799389,0.6551,114430.0,114420.0,1.68995777]
[1754253799692,0.6551,114430.0,114420.0,1.69095777]
[1754253800190,0.770264,114430.0,114420.0,1.69095777]
[1754253801690,0.770264,114430.0,114420.0,1.69195777]
[1754253802492,0.770264,114430.0,114420.0,1.76172399]
[1754253803591,0.770264,114430.0,114420.0,1.49620399]
[1754253803889,0.770264,114430.0,114420.0,1.76180399]
[1754253805093,0.289944,114430.0,114420.0,2.3011312]
[1754253805486,0.312664,114430.0,114420.0,2.3011312]
[1754253805888,0.409464,114430.0,114420.0,2.3011312]
[1754253806793,0.409464,114430.0,114420.0,2.6619312]
[1754253807996,0.409464,114430.0,114420.0,2.3011312]
[1754253809295,0.409464,114430.0,114420.0,2.6619312]
[1754253809594,0.395394,114430.0,114420.0,2.6619312]
[1754253809791,0.361594,114430.0,114420.0,2.6619312]
[1754253810099,0.361594,114430.0,114420.0,2.3011312]
[1754253810300,0.395394,114430.0,114420.0,2.3011312]
[1754253810797,0.409464,114430.0,114420.0,2.3011312]
[1754253811794,0.115164,114430.0,114420.0,2.3011312]
[1754253811999,0.289944,114430.0,114420.0,2.6619312]
[1754253812195,0.28985537,114430.0,114420.0,2.6619312]
[1754253818705,0.28985537,114430.0,114420.0,2.12260399]
[1754253818907,0.36150537,114430.0,114420.0,2.12260399]
[1754253819108,0.40937537,114430.0,114420.0,2.6619312]
[1754253819308,0.39530537,114430.0,114420.0,2.6619312]
[1754253830608,0.39530537,114430.0,114420.0,3.33557609]
[1754253832621,0.39530537,114430.0,114420.0,3.06997609]
[1754253832816,0.39530537,114430.0,114420.0,3.33545609]
[1754253833712,0.39530537,114430.0,114420.0,3.06997609]
[1754253833905,0.39530537,114430.0,114420.0,3.33545609]
[1754253835016,0.39530537,114430.0,114420.0,3.06997609]
[1754253835517,0.39530537,114430.0,114420.0,3.33541609]
[1754253837511,0.39530537,114430.0,114420.0,3.44541083]
[1754253839618,0.36150537,114430.0,114420.0,3.44541083]
[1754253841118,0.31257537,114430.0,114420.0,3.44541083]
[1754253842116,0.28985537,114430.0,114420.0,3.44541083]
[1754253842523,0.31250537,114430.0,114420.0,3.44541083]
[1754253843520,0.31250537,114430.0,114420.0,2.23701083]
[1754253844217,0.11507537,114430.0,114420.0,2.23701083]
[1754253848526,0.28985467,114430.0,114420.0,2.23701083]
[1754253853532,0.11507537,114430.0,114420.0,2.23701083]
[1754253860841,0.11507537,114430.0,114420.0,2.12701609]
[1754253861141,0.11507537,114430.0,114420.0,2.23691094]
[1754253861936,0.11507537,114430.0,114420.0,2.73691094]
[1754253866035,0.11498759,114430.0,114420.0,2.73691094]
[1754253867044,0.28976679,114430.0,114420.0,2.73691094]
[1754253868646,0.28976679,114430.0,114420.0,2.62701609]
[1754253869437,0.11498759,114430.0,114420.0,2.62701609]
[1754253869642,0.33045725,114450.0,114440.0,0.2345939]
[1754253869842,0.36316725,114450.0,114440.0,1.10647995]
[1754253870554,0.36316725,114450.0,114440.0,1.46727995]
[1754253870743,0.36416725,114450.0,114440.0,1.46727995]
[1754253871049,0.36516725,114450.0,114440.0,1.46727995]
[1754253871442,0.2972087,114450.0,114440.0,1.46727995]
[1754253871648,0.1767487,114450.0,114440.0,1.46727995]
[1754253871845,0.1767487,114450.0,114440.0,2.073766]
[1754253872044,0.1767487,114450.0,114440.0,1.46727995]
[1754253872244,0.2014887,114450.0,114440.0,1.46727995]
[1754253872748,0.3166527,114450.0,114440.0,1.46727995]
[1754253874249,0.141904,114450.0,114440.0,1.46727995]
[1754253879253,0.174614,114450.0,114440.0,1.46727995]
[1754253879450,0.207244,114450.0,114440.0,1.46727995]
[1754253880550,0.141904,114450.0,114440.0,1.46727995]
[1754253882958,0.141904,114450.0,114440.0,2.67571995]
[1754253887463,0.117164,114450.0,114440.0,3.282206]
[1754253888563,0.117164,114450.0,114440.0,3.549406]
[1754253888763,0.117164,114450.0,114440.0,4.049406]
[1754253891763,0.117164,114450.0,114440.0,4.15930085]
[1754253894264,0.141384,114450.0,114440.0,4.15930085]
[1754253894460,0.3965726,114450.0,114440.0,3.89390085]
[1754253894667,0.4112026,114450.0,114440.0,3.5181348]
[1754253894862,1.01768865,114450.0,114440.0,3.5181348]
[1754253895167,1.01768865,114450.0,114440.0,3.40823995]
[1754253895464,0.4112026,114450.0,114440.0,2.91785995]
[1754253896465,0.4112026,114450.0,114440.0,2.94192995]
[1754253896863,0.4112026,114450.0,114440.0,2.3354439]
[1754253897065,0.4112026,114450.0,114440.0,2.94192995]
[1754253897762,0.4112026,114450.0,114440.0,2.94188995]
[1754253900467,0.4112026,114450.0,114440.0,2.67468995]
[1754253901367,0.4112026,114450.0,114440.0,2.7845848]
[1754253903575,1.01768865,114450.0,114440.0,2.5193448]
[1754253903771,1.01768865,114450.0,114440.0,2.7845848]
[1754253903973,0.4112026,114450.0,114440.0,2.7845848]
[1754253909373,0.4112026,114450.0,114440.0,2.67468995]
[1754253910576,0.4112026,114450.0,114440.0,2.0682039]
[1754253910777,0.4112026,114450.0,114440.0,2.67468995]
[1754253915182,0.4112026,114450.0,114440.0,2.7845848]
[1754253922085,0.3476326,114450.0,114440.0,2.7845848]
[1754253922286,0.088914,114450.0,114440.0,3.281176]
[1754253922480,0.2421184,114470.0,114460.0,0.1747327]
[1754253922683,0.2421184,114470.0,114460.0,1.40721875]
[1754253923578,0.1984367,114470.0,114460.0,1.40721875]
[1754253923779,0.2014367,114470.0,114460.0,1.40721875]
[1754253925485,0.02671,114470.0,114460.0,1.40721875]
[1754253925689,0.118164,114470.0,114460.0,1.40721875]
[1754253925986,0.121164,114470.0,114460.0,1.40721875]
[1754253927785,0.2958814,114470.0,114460.0,1.40721875]
[1754253927984,0.3195914,114470.0,114460.0,1.40721875]
[1754253928284,0.144874,114470.0,114460.0,1.40721875]
[1754253928987,0.121164,114470.0,114460.0,1.40721875]
[1754253929390,0.144874,114470.0,114460.0,1.40721875]